fUST/lending_fUST_20240828
["ID","MTS","AMOUNT","RATE_DAILY","PERIOD"]
[336319397,1724774851114,-2088.95083068,7.637e-05,2]
[336319398,1724774851135,-300.0,7.714e-05,2]
[336319399,1724774851160,-24900.0,7.715e-05,2]
[336319400,1724774851188,-1346.2744737,7.891e-05,2]
[336319401,1724774851208,-1614.74657381,7.911e-05,2]
[336319402,1724774851230,-422.66048205,8.019e-05,2]
[336319403,1724774851252,-250.0,8.342e-05,2]
[336319404,1724774851277,-250.0,8.365e-05,2]
[336319405,1724774851298,-250.0,8.387e-05,2]
[336319406,1724774851319,-250.0,8.41e-05,2]
[336319407,1724774851340,-250.0,8.433e-05,2]
[336319408,1724774851361,-250.0,8.456e-05,2]
[336319409,1724774851381,-250.0,8.479e-05,2]
[336319410,1724774851402,-420.0,8.486e-05,2]
[336319411,1724774851427,-250.0,8.502e-05,2]
[336319412,1724774851448,-7019.02837854,8.521e-05,2]
[336319413,1724774851468,-2044.0876243,8.521e-05,2]
[336319414,1724774887348,200.22741658,0.00010328,120]
[336319415,1724774951101,-1716.24349216,7.875e-05,2]
[336319416,1724774951122,-422.66048205,7.911e-05,2]
[336319417,1724774951143,-320.53411242,7.954e-05,2]
[336319418,1724774951164,-300.0,8.52e-05,2]
[336319419,1724774951184,-6807.23048571,8.521e-05,2]
[336319420,1724774951204,-42445.819165,8.521e-05,2]
[336319421,1724774951228,-22011.02494469,8.521e-05,2]
[336319422,1724774951250,-1312.35750083,8.521e-05,2]
[336319423,1724774951270,-3657.20362094,8.521e-05,2]
[336319424,1724774951291,-155.11600239,8.521e-05,2]
[336319425,1724774951310,-479.98928472,8.521e-05,2]
[336319426,1724774951330,-161.90697332,8.521e-05,2]
[336319427,1724774951350,-218.88943558,8.521e-05,2]
[336319428,1724774951370,-250.0,8.525e-05,2]
[336319429,1724774951390,-250.0,8.548e-05,2]
[336319430,1724774951411,-250.0,8.57e-05,2]
[336319431,1724774951430,-250.0,8.593e-05,2]
[336319432,1724774951451,-250.0,8.616e-05,2]
[336319433,1724774951472,-250.0,8.639e-05,2]
[336319434,1724774951494,-250.0,8.662e-05,2]
[336319435,1724774951515,-250.0,8.685e-05,2]
[336319436,1724774951536,-250.0,8.708e-05,2]
[336319437,1724774951559,-250.0,8.731e-05,2]
[336319438,1724774951582,-250.0,8.753e-05,2]
[336319439,1724774951604,-934.52737494,8.761e-05,2]
[336319440,1724774951625,-250.0,8.776e-05,2]
[336319441,1724774951647,-2998.9186475,8.793e-05,2]
[336319442,1724774951668,-156.97889283,8.793e-05,2]
[336319443,1724774951691,-793.21116884,8.861e-05,2]
[336319444,1724774951713,-666.01763079,8.861e-05,2]
[336319445,1724774951737,-1767.84535613,8.861e-05,2]
[336319446,1724774951760,-812.05632668,8.861e-05,2]
[336319447,1724774951784,-602.38400418,8.861e-05,2]
[336319448,1724774951807,-301.79866319,8.861e-05,2]
[336319449,1724774951830,-308.87016453,8.883e-05,2]
[336319450,1724774951854,-535.28855475,8.883e-05,2]
[336319451,1724774951876,-155.9968299,8.883e-05,2]
[336319452,1724774951898,-154.72922386,8.883e-05,2]
[336319453,1724774951920,-180.94079709,8.883e-05,2]
[336319454,1724774951942,-154.80647336,8.883e-05,2]
[336319455,1724774951963,-123.10610009,9.336e-05,2]
[336319458,1724774969169,-2714.82142664,8.761e-05,2]
[336319459,1724774969191,-157.22609637,8.793e-05,2]
[336319460,1724774969213,-535.28855475,8.861e-05,2]
[336319461,1724774969236,-154.74467129,8.861e-05,2]
[336319462,1724774969259,-308.87016453,8.861e-05,2]
[336319463,1724774969279,-180.94079709,8.861e-05,2]
[336319464,1724774969302,-22.0026799,8.883e-05,2]
[336319612,1724775038263,-607.44634955,8.8e-05,2]
[336319614,1724775038273,-174.96915302,8.883e-05,2]
[336319616,1724775038283,-811.78467002,8.883e-05,2]
[336319618,1724775038293,-934.56859613,8.883e-05,2]
[336319620,1724775038311,-1095.97423083,8.883e-05,2]
[336319622,1724775038325,-717.94385831,8.883e-05,2]
[336319624,1724775038335,-229.89757928,8.883e-05,2]
[336319626,1724775038344,-505.09916381,9.336e-05,2]
[336319628,1724775038353,-300.0,9.523e-05,2]
[336319630,1724775038363,-7019.02837854,9.939e-05,2]
[336319632,1724775038374,-209.81980082,9.939e-05,2]
[336319634,1724775038383,-288.5284708,0.0001,2]
[336319636,1724775038393,-818.21912358,0.0001,2]
[336319638,1724775038403,-195.62025392,0.0001,2]
[336319640,1724775038413,-154.74467129,0.0001,2]
[336319643,1724775038423,-154.72922386,0.00010081,2]
[336319645,1724775038435,-1614.74657381,0.00010081,2]
[336319647,1724775038444,-309.48534203,0.00010328,2]
[336319649,1724775038453,-240.62682257,0.00010328,2]
[336319651,1724775038463,-1673.30432281,0.00010328,2]
[336319653,1724775038472,-154.74467129,0.00010328,2]
[336319655,1724775038481,-153.0,0.00010459,2]
[336319657,1724775038491,-420.0,0.00010475,2]
[336319659,1724775038499,-2000.0,0.000105,2]
[336319661,1724775038509,-397.67019358,0.00010574,2]
[336319663,1724775038518,-602.38400418,0.00010767,2]
[336319665,1724775038527,-812.05632668,0.00010767,2]
[336319666,1724775038536,-22011.02494469,0.00010767,2]
[336319668,1724775038546,-8851.31811001,0.00010767,2]
[336319670,1724775038556,-222.53197771,0.00010767,2]
[336319673,1724775038565,-1207.70703422,0.00010767,2]
[336319675,1724775038574,-535.28855475,0.00010767,2]
[336319676,1724775038583,-421.7612323,0.00010767,2]
[336319679,1724775038593,-2998.9186475,0.00010767,2]
[336319681,1724775038603,-228.72120056,0.00010767,2]
[336319682,1724775038612,-2714.82142664,0.00010767,2]
[336319684,1724775038621,-157.6639457,0.00010767,2]
[336319706,1724775038816,-180.94079709,0.00010767,2]
[336319708,1724775038828,-153.0,0.00010812,2]
[336319710,1724775038838,-153.0,0.00010812,2]
[336319712,1724775038850,-153.0,0.00010812,2]
[336319715,1724775038861,-2722.34054142,0.00010858,2]
[336319717,1724775038872,-5872.18260987,0.00010858,2]
[336319719,1724775038883,-95340.55711429,0.000109,2]
[336319721,1724775038893,-81453.0,0.000109,2]
[336319723,1724775038904,-500.0,0.00010958,2]
[336319725,1724775038913,-500.0,0.00010958,2]
[336319727,1724775038924,-500.0,0.00010958,2]
[336319729,1724775038934,-500.0,0.00010958,2]
[336319731,1724775038944,-500.0,0.00010958,2]
[336319733,1724775038953,-500.0,0.00010958,2]
[336319736,1724775038963,-500.0,0.00010958,2]
[336319738,1724775038973,-500.0,0.00010958,2]
[336319740,1724775038982,-500.0,0.00010958,2]
[336319742,1724775038992,-500.0,0.00010958,2]
[336319744,1724775039002,-500.0,0.00010958,2]
[336319746,1724775039012,-500.0,0.00010958,2]
[336319748,1724775039021,-500.0,0.00010958,2]
[336319750,1724775039031,-500.0,0.00010958,2]
[336319752,1724775039041,-500.0,0.00010958,2]
[336319754,1724775039052,-500.0,0.00010958,2]
[336319756,1724775039061,-500.0,0.00010958,2]
[336319758,1724775039071,-500.0,0.00010958,2]
[336319760,1724775039080,-251.3861206,0.00010958,2]
[336319762,1724775039090,-500.0,0.00010958,2]
[336319764,1724775039099,-500.0,0.00010958,2]
[336319766,1724775039108,-500.0,0.00010958,2]
[336319768,1724775039117,-500.0,0.00010958,2]
[336319770,1724775039127,-500.0,0.00010958,2]
[336319772,1724775039137,-500.0,0.00010958,2]
[336319774,1724775039147,-500.0,0.00010958,2]
[336319776,1724775039156,-500.0,0.00010958,2]
[336319778,1724775039166,-500.0,0.00010958,2]
[336319781,1724775039175,-500.0,0.00010958,2]
[336319783,1724775039186,-500.0,0.00010958,2]
[336319785,1724775039195,-500.0,0.00010958,2]
[336319786,1724775039204,-507.48470901,0.00010958,2]
[336319788,1724775039213,-500.0,0.00010958,2]
[336319791,1724775039223,-500.0,0.00010958,2]
[336319792,1724775039233,-500.0,0.00010958,2]
[336319795,1724775039245,-500.0,0.00010958,2]
[336319797,1724775039258,-500.0,0.00010958,2]
[336319799,1724775039267,-500.0,0.00010958,2]
[336319801,1724775039276,-500.0,0.00010958,2]
[336319803,1724775039286,-500.0,0.00010958,2]
[336319805,1724775039298,-500.0,0.00010958,2]
[336319807,1724775039314,-500.0,0.00010958,2]
[336319808,1724775039324,-500.89543115,0.00010958,2]
[336319810,1724775039334,-500.0,0.00010958,2]
[336319813,1724775039344,-500.0,0.00010958,2]
[336319815,1724775039354,-500.0,0.00010958,2]
[336319817,1724775039363,-500.0,0.00010958,2]
[336319819,1724775039372,-500.0,0.00010958,2]
[336319821,1724775039382,-502.42094664,0.00010958,2]
[336319823,1724775039391,-501.96103978,0.00010958,2]
[336319825,1724775039401,-500.0,0.00010958,2]
[336319827,1724775039410,-500.0,0.00010958,2]
[336319829,1724775039420,-500.0,0.00010958,2]
[336319831,1724775039430,-500.79068463,0.00010958,2]
[336319833,1724775039442,-500.0,0.00010958,2]
[336319835,1724775039452,-301.0,0.00010958,2]
[336319837,1724775039463,-500.0,0.00010958,2]
[336319839,1724775039473,-500.0,0.00010958,2]
[336319841,1724775039483,-500.0,0.00010958,2]
[336319844,1724775039493,-500.0,0.00010958,2]
[336319846,1724775039503,-500.0,0.00010958,2]
[336319848,1724775039513,-500.0,0.00010958,2]
[336319850,1724775039522,-500.12504754,0.00010958,2]
[336319852,1724775039532,-522.95560863,0.00010958,2]
[336319854,1724775039541,-501.08806352,0.00010958,2]
[336319856,1724775039551,-500.0,0.00010958,2]
[336319858,1724775039560,-500.0,0.00010958,2]
[336319859,1724775039569,-500.0,0.00010958,2]
[336319860,1724775039579,-500.0,0.00010958,2]
[336319861,1724775039589,-299.0645899,0.00010958,2]
[336319862,1724775039598,-500.0,0.00010958,2]
[336319863,1724775039608,-500.0,0.00010958,2]
[336319864,1724775039617,-500.0,0.00010958,2]
[336319865,1724775039627,-500.0,0.00010958,2]
[336319866,1724775039637,-500.0,0.00010958,2]
[336319867,1724775039647,-500.0,0.00010958,2]
[336319868,1724775039657,-500.0,0.00010958,2]
[336319869,1724775039666,-500.0,0.00010958,2]
[336319870,1724775039676,-500.0,0.00010958,2]
[336319871,1724775039685,-500.0,0.00010958,2]
[336319872,1724775039695,-500.0,0.00010958,2]
[336319873,1724775039705,-500.0,0.00010958,2]
[336319874,1724775039715,-500.0,0.00010958,2]
[336319875,1724775039724,-500.0,0.00010958,2]
[336319876,1724775039734,-500.0,0.00010958,2]
[336319877,1724775039744,-500.0,0.00010958,2]
[336319878,1724775039754,-500.0,0.00010958,2]
[336319880,1724775039766,-500.0,0.00010958,2]
[336319882,1724775039777,-500.0,0.00010958,2]
[336319885,1724775039789,-500.0,0.00010958,2]
[336319887,1724775039798,-500.0,0.00010958,2]
[336319890,1724775039809,-500.0,0.00010958,2]
[336319893,1724775039818,-500.0,0.00010958,2]
[336319896,1724775039828,-500.0,0.00010958,2]
[336319898,1724775039837,-500.0,0.00010958,2]
[336319901,1724775039846,-500.0,0.00010958,2]
[336319904,1724775039857,-500.0,0.00010958,2]
[336319907,1724775039866,-500.0,0.00010958,2]
[336319910,1724775039876,-500.0,0.00010958,2]
[336319912,1724775039885,-500.0,0.00010958,2]
[336319915,1724775039895,-500.0,0.00010958,2]
[336319918,1724775039905,-500.0,0.00010958,2]
[336319920,1724775039914,-500.0,0.00010958,2]
[336319922,1724775039923,-500.0,0.00010958,2]
[336319924,1724775039932,-500.0,0.00010958,2]
[336319926,1724775039942,-500.0,0.00010958,2]
[336319929,1724775039954,-500.0,0.00010958,2]
[336319932,1724775039964,-607.15,0.00010958,2]
[336319935,1724775039974,-500.0,0.00010958,2]
[336319938,1724775039984,-621.21,0.00010958,2]
[336319941,1724775039993,-500.0,0.00010958,2]
[336319944,1724775040004,-500.0,0.00010958,2]
[336319946,1724775040014,-596.01,0.00010958,2]
[336319948,1724775040023,-500.0,0.00010958,2]
[336319950,1724775040033,-500.0,0.00010958,2]
[336319952,1724775040042,-500.0,0.00010958,2]
[336319954,1724775040052,-500.0,0.00010958,2]
[336319956,1724775040062,-500.0,0.00010958,2]
[336319958,1724775040071,-500.0,0.00010958,2]
[336319960,1724775040082,-500.0,0.00010958,2]
[336319962,1724775040091,-500.0,0.00010958,2]
[336319964,1724775040101,-500.0,0.00010958,2]
[336319966,1724775040111,-500.0,0.00010958,2]
[336319969,1724775040121,-500.0,0.00010958,2]
[336319970,1724775040131,-447.60060409,0.00010958,2]
[336319973,1724775040141,-500.0,0.00010958,2]
[336319975,1724775040151,-500.0,0.00010958,2]
[336319977,1724775040162,-619.63643294,0.00010958,2]
[336319979,1724775040172,-500.0,0.00010958,2]
[336319981,1724775040183,-154.72922386,0.00010958,2]
[336319983,1724775040193,-500.0,0.00010958,2]
[336319985,1724775040203,-500.0,0.00010958,2]
[336319987,1724775040214,-500.0,0.00010958,2]
[336319990,1724775040224,-500.0,0.00010958,2]
[336319992,1724775040235,-500.0,0.00010958,2]
[336319994,1724775040250,-500.0,0.00010958,2]
[336319996,1724775040259,-500.0,0.00010958,2]
[336319998,1724775040268,-500.0,0.00010958,2]
[336320000,1724775040277,-500.0,0.00010958,2]
[336320002,1724775040288,-500.0,0.00010958,2]
[336320004,1724775040299,-500.0,0.00010958,2]
[336320006,1724775040309,-500.0,0.00010958,2]
[336320008,1724775040319,-500.0,0.00010958,2]
[336320010,1724775040329,-500.0,0.00010958,2]
[336320012,1724775040338,-500.0,0.00010958,2]
[336320014,1724775040348,-500.0,0.00010958,2]
[336320016,1724775040358,-500.0,0.00010958,2]
[336320018,1724775040368,-500.0,0.00010958,2]
[336320020,1724775040377,-500.0,0.00010958,2]
[336320022,1724775040387,-500.0,0.00010958,2]
[336320024,1724775040396,-500.0,0.00010958,2]
[336320026,1724775040407,-500.0,0.00010958,2]
[336320028,1724775040417,-500.0,0.00010958,2]
[336320030,1724775040427,-500.0,0.00010958,2]
[336320032,1724775040437,-519.74158879,0.00010958,2]
[336320034,1724775040446,-500.0,0.00010958,2]
[336320036,1724775040456,-508.0,0.00010958,2]
[336320038,1724775040466,-500.0,0.00010958,2]
[336320040,1724775040475,-500.0,0.00010958,2]
[336320042,1724775040484,-500.0,0.00010958,2]
[336320044,1724775040494,-500.0,0.00010958,2]
[336320046,1724775040503,-500.0,0.00010958,2]
[336320049,1724775040514,-500.0,0.00010958,2]
[336320051,1724775040524,-500.0,0.00010958,2]
[336320053,1724775040534,-500.0,0.00010958,2]
[336320055,1724775040544,-500.0,0.00010958,2]
[336320057,1724775040554,-500.0,0.00010958,2]
[336320059,1724775040563,-500.0,0.00010958,2]
[336320061,1724775040572,-500.0,0.00010958,2]
[336320063,1724775040582,-500.0,0.00010958,2]
[336320065,1724775040591,-642.42,0.00010958,2]
[336320067,1724775040601,-1157.23,0.00010958,2]
[336320069,1724775040610,-500.0,0.00010958,2]
[336320071,1724775040621,-500.0,0.00010958,2]
[336320073,1724775040630,-500.0,0.00010958,2]
[336320075,1724775040639,-500.0,0.00010958,2]
[336320077,1724775040649,-500.0,0.00010958,2]
[336320079,1724775040658,-500.0,0.00010958,2]
[336320081,1724775040667,-500.0,0.00010958,2]
[336320083,1724775040677,-502.47406755,0.00010958,2]
[336320085,1724775040686,-500.0,0.00010958,2]
[336320087,1724775040698,-500.0,0.00010958,2]
[336320089,1724775040708,-508.24349166,0.00010958,2]
[336320091,1724775040717,-500.0,0.00010958,2]
[336320093,1724775040727,-500.0,0.00010958,2]
[336320095,1724775040736,-500.0,0.00010958,2]
[336320097,1724775040745,-500.0,0.00010958,2]
[336320099,1724775040755,-544.4,0.00010958,2]
[336320101,1724775040765,-500.0,0.00010958,2]
[336320103,1724775040775,-500.0,0.00010958,2]
[336320105,1724775040785,-500.0,0.00010958,2]
[336320107,1724775040795,-500.0,0.00010958,2]
[336320109,1724775040806,-500.0,0.00010958,2]
[336320111,1724775040816,-500.0,0.00010958,2]
[336320113,1724775040825,-500.0,0.00010958,2]
[336320115,1724775040835,-500.0,0.00010958,2]
[336320117,1724775040845,-500.0,0.00010958,2]
[336320119,1724775040854,-500.0,0.00010958,2]
[336320122,1724775040864,-500.0,0.00010958,2]
[336320124,1724775040874,-500.0,0.00010958,2]
[336320126,1724775040883,-500.0,0.00010958,2]
[336320128,1724775040892,-500.0,0.00010958,2]
[336320130,1724775040902,-500.0,0.00010958,2]
[336320132,1724775040911,-500.0,0.00010958,2]
[336320134,1724775040920,-515.90446568,0.00010958,2]
[336320136,1724775040930,-500.0,0.00010958,2]
[336320138,1724775040939,-500.0,0.00010958,2]
[336320140,1724775040950,-500.0,0.00010958,2]
[336320142,1724775040960,-500.0,0.00010958,2]
[336320144,1724775040969,-500.0,0.00010958,2]
[336320146,1724775040979,-1248.34,0.00010958,2]
[336320148,1724775040989,-154.14502851,0.00010958,2]
[336320150,1724775041000,-500.0,0.00010958,2]
[336320152,1724775041010,-500.0,0.00010958,2]
[336320154,1724775041020,-500.0,0.00010958,2]
[336320156,1724775041030,-500.0,0.00010958,2]
[336320158,1724775041039,-539.29301197,0.00010958,2]
[336320160,1724775041048,-150.0,0.00010958,2]
[336320162,1724775041059,-500.0,0.00010958,2]
[336320164,1724775041068,-500.0,0.00010958,2]
[336320166,1724775041078,-500.0,0.00010958,2]
[336320168,1724775041088,-500.0,0.00010958,2]
[336320170,1724775041098,-500.0,0.00010958,2]
[336320172,1724775041108,-316.24143331,0.00010958,2]
[336320174,1724775041117,-500.0,0.00010958,2]
[336320176,1724775041128,-500.0,0.00010958,2]
[336320178,1724775041137,-500.0,0.00010958,2]
[336320180,1724775041146,-500.0,0.00010958,2]
[336320182,1724775041157,-500.0,0.00010958,2]
[336320184,1724775041167,-481.88315642,0.00010958,2]
[336320186,1724775041177,-500.0,0.00010958,2]
[336320188,1724775041187,-382.06,0.00010958,2]
[336320190,1724775041198,-500.0,0.00010958,2]
[336320192,1724775041209,-500.0,0.00010958,2]
[336320194,1724775041220,-500.0,0.00010958,2]
[336320197,1724775041230,-500.0,0.00010958,2]
[336320199,1724775041240,-500.0,0.00010958,2]
[336320201,1724775041255,-500.0,0.00010958,2]
[336320203,1724775041264,-500.0,0.00010958,2]
[336320205,1724775041274,-500.0,0.00010958,2]
[336320207,1724775041283,-503.7227562,0.00010958,2]
[336320209,1724775041294,-500.0,0.00010958,2]
[336320211,1724775041304,-500.0,0.00010958,2]
[336320213,1724775041317,-500.0,0.00010958,2]
[336320215,1724775041329,-500.0,0.00010958,2]
[336320217,1724775041341,-500.0,0.00010958,2]
[336320219,1724775041351,-500.0,0.00010958,2]
[336320221,1724775041362,-500.0,0.00010958,2]
[336320223,1724775041371,-500.0,0.00010958,2]
[336320225,1724775041384,-500.0,0.00010958,2]
[336320227,1724775041394,-500.0,0.00010958,2]
[336320229,1724775041403,-500.0,0.00010958,2]
[336320232,1724775041413,-500.0,0.00010958,2]
[336320234,1724775041423,-500.69520175,0.00010958,2]
[336320236,1724775041433,-500.0,0.00010958,2]
[336320238,1724775041444,-500.0,0.00010958,2]
[336320240,1724775041454,-500.0,0.00010958,2]
[336320242,1724775041463,-500.0,0.00010958,2]
[336320244,1724775041474,-500.0,0.00010958,2]
[336320246,1724775041483,-500.0,0.00010958,2]
[336320248,1724775041493,-580.52,0.00010958,2]
[336320250,1724775041503,-204.00081528,0.00010958,2]
[336320252,1724775041513,-500.0,0.00010958,2]
[336320254,1724775041524,-500.0,0.00010958,2]
[336320256,1724775041534,-500.0,0.00010958,2]
[336320258,1724775041543,-500.0,0.00010958,2]
[336320260,1724775041553,-556.3,0.00010958,2]
[336320263,1724775041564,-500.0,0.00010958,2]
[336320265,1724775041574,-500.0,0.00010958,2]
[336320267,1724775041584,-500.0,0.00010958,2]
[336320269,1724775041593,-631.93,0.00010958,2]
[336320271,1724775041605,-500.0,0.00010958,2]
[336320273,1724775041615,-500.0,0.00010958,2]
[336320275,1724775041625,-570.56,0.00010958,2]
[336320277,1724775041635,-500.0,0.00010958,2]
[336320280,1724775041645,-500.0,0.00010958,2]
[336320282,1724775041655,-500.0,0.00010958,2]
[336320284,1724775041663,-501.36077145,0.00010958,2]
[336320286,1724775041675,-500.0,0.00010958,2]
[336320288,1724775041685,-500.0,0.00010958,2]
[336320290,1724775041697,-520.03,0.00010958,2]
[336320293,1724775041708,-500.0,0.00010958,2]
[336320295,1724775041719,-500.0,0.00010958,2]
[336320297,1724775041728,-500.0,0.00010958,2]
[336320299,1724775041737,-500.0,0.00010958,2]
[336320301,1724775041746,-500.0,0.00010958,2]
[336320303,1724775041755,-500.0,0.00010958,2]
[336320305,1724775041764,-500.0,0.00010958,2]
[336320307,1724775041773,-500.0,0.00010958,2]
[336320309,1724775041783,-500.0,0.00010958,2]
[336320311,1724775041793,-501.38732114,0.00010958,2]
[336320313,1724775041802,-500.1959355,0.00010958,2]
[336320315,1724775041818,-500.0,0.00010958,2]
[336320317,1724775041829,-500.0,0.00010958,2]
[336320319,1724775041839,-500.0,0.00010958,2]
[336320321,1724775041848,-500.0,0.00010958,2]
[336320323,1724775041857,-500.0,0.00010958,2]
[336320326,1724775041867,-417.61929196,0.00010958,2]
[336320328,1724775041877,-500.0,0.00010958,2]
[336320330,1724775041886,-500.0,0.00010958,2]
[336320332,1724775041896,-500.0,0.00010958,2]
[336320334,1724775041905,-495.84420563,0.00010958,2]
[336320336,1724775041914,-500.0,0.00010958,2]
[336320338,1724775041923,-500.0,0.00010958,2]
[336320340,1724775041934,-514.84577054,0.00010958,2]
[336320342,1724775041944,-500.0,0.00010958,2]
[336320344,1724775041954,-501.22694863,0.00010958,2]
[336320346,1724775041963,-500.0,0.00010958,2]
[336320348,1724775041973,-500.0,0.00010958,2]
[336320350,1724775041982,-500.0,0.00010958,2]
[336320352,1724775041991,-500.0,0.00010958,2]
[336320354,1724775042002,-500.0,0.00010958,2]
[336320356,1724775042012,-500.0,0.00010958,2]
[336320358,1724775042022,-500.0,0.00010958,2]
[336320360,1724775042033,-524.06,0.00010958,2]
[336320362,1724775042043,-500.0,0.00010958,2]
[336320364,1724775042052,-500.0,0.00010958,2]
[336320366,1724775042063,-500.0,0.00010958,2]
[336320368,1724775042073,-500.0,0.00010958,2]
[336320371,1724775042084,-500.0,0.00010958,2]
[336320373,1724775042094,-500.0,0.00010958,2]
[336320375,1724775042104,-500.0,0.00010958,2]
[336320377,1724775042114,-500.0,0.00010958,2]
[336320380,1724775042136,-500.0,0.00010958,2]
[336320382,1724775042146,-500.0,0.00010958,2]
[336320385,1724775042156,-500.0,0.00010958,2]
[336320387,1724775042167,-403.9481357,0.00010958,2]
[336320389,1724775042177,-631.55,0.00010958,2]
[336320391,1724775042186,-729.74,0.00010958,2]
[336320393,1724775042197,-500.0,0.00010958,2]
[336320395,1724775042207,-500.0,0.00010958,2]
[336320397,1724775042219,-279.85197933,0.00010958,2]
[336320399,1724775042229,-500.0,0.00010958,2]
[336320401,1724775042241,-500.0,0.00010958,2]
[336320404,1724775042255,-500.0,0.00010958,2]
[336320406,1724775042265,-500.0,0.00010958,2]
[336320408,1724775042274,-500.0,0.00010958,2]
[336320429,1724775042470,-812.46,0.00010958,2]
[336320431,1724775042481,-812.46,0.00010958,2]
[336320434,1724775042494,-812.46,0.00010958,2]
[336320436,1724775042504,-500.0,0.00010958,2]
[336320438,1724775042514,-812.46,0.00010958,2]
[336320440,1724775042524,-500.0,0.00010958,2]
[336320442,1724775042534,-500.0,0.00010958,2]
[336320444,1724775042547,-812.46,0.00010958,2]
[336320447,1724775042559,-500.0,0.00010958,2]
[336320448,1724775042568,-812.46,0.00010958,2]
[336320450,1724775042578,-812.46,0.00010958,2]
[336320453,1724775042587,-812.46,0.00010958,2]
[336320455,1724775042597,-812.46,0.00010958,2]
[336320457,1724775042608,-812.46,0.00010958,2]
[336320459,1724775042618,-812.46,0.00010958,2]
[336320461,1724775042628,-500.0,0.00010958,2]
[336320463,1724775042637,-812.46,0.00010958,2]
[336320465,1724775042647,-500.0,0.00010958,2]
[336320467,1724775042657,-500.0,0.00010958,2]
[336320469,1724775042667,-500.0,0.00010958,2]
[336320471,1724775042677,-500.0,0.00010958,2]
[336320474,1724775042691,-500.0,0.00010958,2]
[336320477,1724775042701,-512.53,0.00010958,2]
[336320480,1724775042712,-500.0,0.00010958,2]
[336320483,1724775042723,-500.0,0.00010958,2]
[336320487,1724775042736,-500.0,0.00010958,2]
[336320490,1724775042746,-500.0,0.00010958,2]
[336320492,1724775042755,-500.0,0.00010958,2]
[336320494,1724775042766,-500.0,0.00010958,2]
[336320496,1724775042776,-500.0,0.00010958,2]
[336320498,1724775042785,-518.16902662,0.00010958,2]
[336320500,1724775042795,-500.0,0.00010958,2]
[336320503,1724775042804,-500.0,0.00010958,2]
[336320505,1724775042815,-500.6952421,0.00010958,2]
[336320508,1724775042824,-500.0,0.00010958,2]
[336320511,1724775042834,-500.0,0.00010958,2]
[336320514,1724775042844,-500.0,0.00010958,2]
[336320516,1724775042853,-500.0,0.00010958,2]
[336320518,1724775042863,-500.0,0.00010958,2]
[336320521,1724775042872,-500.0,0.00010958,2]
[336320524,1724775042882,-500.0,0.00010958,2]
[336320527,1724775042892,-500.0,0.00010958,2]
[336320530,1724775042902,-500.0,0.00010958,2]
[336320533,1724775042911,-500.0,0.00010958,2]
[336320536,1724775042920,-500.0,0.00010958,2]
[336320539,1724775042930,-574.62,0.00010958,2]
[336320542,1724775042940,-500.0,0.00010958,2]
[336320545,1724775042949,-500.0,0.00010958,2]
[336320549,1724775042960,-500.0,0.00010958,2]
[336320552,1724775042970,-483.64010277,0.00010958,2]
[336320555,1724775042980,-500.0,0.00010958,2]
[336320558,1724775042989,-500.0,0.00010958,2]